bitfinex-derivatives/quotes_BTCF0:USTF0_20240907
["timestamp","ask_amount","ask_price","bid_price","bid_amount"]
[1725673135875,0.092818,53882.0,53881.0,0.0488]
[1725673139276,0.092818,53882.0,53881.0,0.08140226]
[1725673143377,0.092818,53882.0,53881.0,0.17422226]
[1725673144284,0.09203519,53894.0,53881.0,0.08140226]
[1725673144483,0.092806,53889.0,53888.0,0.192806]
[1725673144686,0.092806,53889.0,53888.0,0.092806]
[1725673146380,0.092808,53888.0,53887.0,0.0453]
[1725673146583,0.092808,53888.0,53881.0,0.12880226]
[1725673146584,0.092816,53883.0,53882.0,0.05545201]
[1725673146783,0.1,53888.0,53882.0,0.03422807]
[1725673146984,0.092818,53883.0,53881.0,0.14162]
[1725673147190,0.092818,53882.0,53881.0,0.14162]
[1725673147587,0.092818,53882.0,53880.0,0.05545201]
[1725673147588,0.092822,53880.0,53879.0,0.19617501]
[1725673147796,0.092822,53880.0,53879.0,0.17350344]
[1725673148093,0.092822,53880.0,53879.0,0.12560344]
[1725673148896,0.092822,53880.0,53879.0,0.092823]
[1725673149299,0.092822,53880.0,53873.0,0.10215201]
[1725673149300,0.09282,53881.0,53873.0,0.10224879]
[1725673149498,0.09282,53881.0,53872.0,0.0479]
[1725673149499,0.092833,53874.0,53872.0,0.0479]
[1725673149703,0.092834,53873.0,53872.0,0.0479]
[1725673150600,0.092835,53872.0,53871.0,0.08899501]
[1725673150806,0.092837,53871.0,53870.0,0.05554879]
[1725673151703,0.1,53872.0,53862.0,0.140951]
[1725673151704,0.092839,53870.0,53869.0,0.05554879]
[1725673152297,0.1,53872.0,53866.0,0.07393602]
[1725673152494,0.1,53867.0,53863.0,0.07411178]
[1725673152693,0.1,53864.0,53863.0,0.05558781]
[1725673153008,0.192849,53864.0,53863.0,0.0555911]
[1725673153204,0.092853,53862.0,53861.0,0.0555911]
[1725673153397,0.092853,53862.0,53860.0,1.03415841]
[1725673154412,0.092853,53862.0,53861.0,0.14841056]
[1725673156302,0.092853,53862.0,53861.0,0.092854]
[1725673160408,0.185708,53861.0,53860.0,1.0]
[1725673160599,0.281108,53861.0,53860.0,1.0]
[1725673164212,0.138854,53861.0,53860.0,1.0]
[1725673176032,0.238854,53861.0,53860.0,1.0]
[1725673176827,0.092854,53861.0,53860.0,1.0]
[1725673177831,0.092854,53861.0,53860.0,1.092856]
[1725673180438,0.092854,53861.0,53860.0,1.14841256]
[1725673180632,0.092854,53861.0,53860.0,1.092856]
[1725673181326,0.092854,53861.0,53860.0,1.14841256]
[1725673182125,0.092854,53861.0,53860.0,1.092856]
[1725673185838,0.092854,53861.0,53860.0,1.16696778]
[1725673186440,0.092854,53861.0,53860.0,1.092856]
[1725673186638,0.092854,53861.0,53860.0,1.16696778]
[1725673186840,0.092854,53861.0,53860.0,1.092856]
[1725673187439,0.092854,53861.0,53860.0,1.16696778]
[1725673188142,0.092854,53861.0,53860.0,1.092856]
[1725673188934,0.192854,53861.0,53860.0,1.0]
[1725673189641,0.192854,53861.0,53860.0,1.05570782]
[1725673190043,0.285708,53861.0,53860.0,1.0]
[1725673190230,0.37774319,53861.0,53860.0,1.0]
[1725673191835,0.41147832,53861.0,53860.0,1.0]
[1725673193240,0.41147832,53861.0,53860.0,1.05571499]
[1725673193940,0.22658913,53861.0,53860.0,1.0]
[1725673194552,0.557,53860.0,53847.0,0.09263677]
[1725673194851,0.092889,53841.0,53840.0,0.05572716]
[1725673195140,0.092891,53840.0,53839.0,0.05573374]
[1725673195344,0.09231433,53844.0,53839.0,0.32879299]
[1725673195553,0.09231433,53844.0,53832.0,0.15658476]
[1725673195554,0.15692354,53840.0,53836.0,0.05573374]
[1725673195749,0.1,53840.0,53836.0,0.05573374]
[1725673195938,0.19289,53840.0,53839.0,0.32879299]
[1725673196749,0.1,53840.0,53839.0,0.32879299]
[1725673197243,0.7,53840.0,53833.0,0.05573374]
[1725673197449,0.05692848,53839.0,53830.0,0.03355786]
[1725673197743,0.1,53841.0,53832.0,0.1]
[1725673197942,0.19,53843.0,53841.0,0.32879299]
[1725673199147,0.19,53843.0,53831.0,0.379005]
[1725673199340,0.19,53840.0,53839.0,0.32879299]
[1725673202342,0.19,53840.0,53831.0,0.189005]
[1725673202651,0.19,53840.0,53837.0,0.32879299]
[1725673203247,0.19,53840.0,53831.0,0.189005]
[1725673203452,0.19,53840.0,53834.0,0.32879299]
[1725673203751,0.0365,53842.0,53826.0,0.092913]
[1725673203752,0.092897,53836.0,53826.0,0.092913]
[1725673203950,0.19,53828.0,53827.0,0.32879299]
[1725673204153,0.19,53828.0,53826.0,0.32879299]
[1725673204954,0.282896,53837.0,53828.0,0.09291]
[1725673205153,0.282896,53837.0,53833.0,0.32879299]
[1725673205346,0.19,53833.0,53828.0,0.09291]
[1725673205541,0.19,53833.0,53832.0,0.32879299]
[1725673205751,0.19,53833.0,53828.0,0.42170299]
[1725673206051,0.19,53833.0,53828.0,0.32879299]
[1725673207050,0.092901,53834.0,53828.0,0.32879299]
[1725673207354,0.19,53831.0,53828.0,0.32879299]
[1725673207756,0.19,53831.0,53826.0,0.092915]
[1725673207956,0.19,53831.0,53827.0,0.32879299]
[1725673208455,0.19,53831.0,53828.0,0.32879299]
[1725673209055,0.09231433,53838.0,53830.0,0.51879299]
[1725673209251,0.09231433,53845.0,53837.0,0.32879299]
[1725673209454,0.09231433,53847.0,53844.0,0.51879299]
[1725673209752,0.092857,53860.0,53838.0,0.0482]
[1725673209753,0.09231433,53853.0,53852.0,0.09287]
[1725673209955,0.09231433,53854.0,53853.0,0.092868]
[1725673210147,0.09231433,53854.0,53853.0,0.42166099]
[1725673210558,0.09231433,53855.0,53853.0,0.42166099]
[1725673210950,0.09231433,53855.0,53854.0,0.42165899]
[1725673211150,0.09231433,53857.0,53854.0,0.32879299]
[1725673211346,0.09231433,53858.0,53857.0,0.32879299]
[1725673211551,0.09231433,53859.0,53857.0,0.32879299]
[1725673211760,0.09231433,53860.0,53858.0,0.092859]
[1725673212060,0.09231433,53861.0,53858.0,0.092859]
[1725673213561,0.09231433,53861.0,53859.0,0.092857]
[1725673214362,0.09231433,53861.0,53860.0,0.32879299]
[1725673215753,0.0918117,53861.0,53860.0,0.32879299]
[1725673215958,0.19,53862.0,53860.0,0.32879299]
[1725673216961,0.19,53862.0,53860.0,0.42164899]
[1725673217155,0.19,53862.0,53861.0,0.092854]
[1725673217455,0.30077802,53866.0,53864.0,0.092849]
[1725673218049,0.19,53866.0,53864.0,0.092849]
[1725673218358,0.11077802,53865.0,53864.0,0.092849]
[1725673218562,0.11077802,53867.0,53861.0,0.0466]
[1725673218750,0.09184915,53865.0,53861.0,0.0466]
[1725673219057,0.09184915,53866.0,53861.0,0.0466]
[1725673219355,0.30077802,53869.0,53867.0,0.32879299]
[1725673219560,0.282842,53869.0,53867.0,0.32879299]
[1725673219958,0.092842,53868.0,53867.0,0.32879299]
[1725673220163,0.39362002,53869.0,53867.0,0.32879299]
[1725673220655,0.282842,53869.0,53867.0,0.32879299]
[1725673221355,0.282842,53869.0,53861.0,0.0466]
[1725673221563,0.28184494,53865.0,53864.0,0.092849]
[1725673221763,0.19,53865.0,53864.0,0.092849]
[1725673222155,0.32832344,53865.0,53864.0,0.06606824]
[1725673222951,0.38286136,53865.0,53864.0,0.06606824]
[1725673224861,1.54888336,53865.0,53846.0,0.092879]
[1725673225060,0.20198447,53849.0,53843.0,0.0973]
[1725673225268,0.20198447,53844.0,53843.0,0.190185]
[1725673225460,0.19286136,53844.0,53843.0,0.190185]
[1725673225661,0.19286136,53844.0,53843.0,0.51897799]
[1725673226465,0.19358444,53844.0,53843.0,0.51897799]
[1725673226865,0.13835082,53844.0,53843.0,0.51897799]
[1725673227567,0.34035301,53844.0,53843.0,0.51897799]
[1725673228467,0.13835082,53844.0,53843.0,0.51897799]
[1725673228668,0.13835082,53844.0,53843.0,1.21186299]
[1725673228967,0.13835082,53844.0,53843.0,1.24455801]
[1725673230369,0.19,53858.0,53843.0,1.15167301]
[1725673230370,0.092867,53854.0,53843.0,1.15167301]
[1725673230672,0.092867,53854.0,53846.0,0.19]
[1725673230863,0.092867,53854.0,53853.0,0.32879299]
[1725673231966,0.092867,53854.0,53853.0,0.42166099]
[1725673235166,0.282861,53858.0,53855.0,0.092865]
[1725673235370,0.092862,53857.0,53855.0,0.42165799]
[1725673237276,0.1383463,53856.0,53855.0,0.42165799]
[1725673237469,0.22000716,53856.0,53855.0,0.092865]
[1725673237672,0.32248235,53856.0,53855.0,0.42165799]
[1725673237875,0.37652382,53856.0,53855.0,0.42165799]
[1725673238377,0.19238777,53856.0,53855.0,0.42165799]
[1725673238567,0.39512845,53856.0,53855.0,0.42165799]
[1725673238768,0.19238777,53856.0,53855.0,0.42165799]
[1725673240875,0.22037072,53856.0,53855.0,0.42165799]
[1725673241081,0.20192746,53856.0,53855.0,0.46915799]
[1725673241274,0.05700003,53856.0,53855.0,0.46915799]
[1725673241470,0.03586832,53856.0,53855.0,0.46915799]
[1725673241880,0.13833556,53856.0,53855.0,0.46915799]
[1725673242267,0.20191935,53856.0,53855.0,0.46915799]
[1725673242471,0.13833556,53856.0,53855.0,0.46915799]
[1725673242866,0.20191245,53856.0,53855.0,0.46915799]
[1725673243680,0.13833556,53856.0,53855.0,0.46915799]
[1725673245483,0.20355207,53859.0,53858.0,0.092859]
[1725673245672,0.092858,53859.0,53858.0,0.42165199]
[1725673246083,0.20355207,53859.0,53858.0,0.42165199]
[1725673246782,0.092858,53859.0,53858.0,0.42165199]
[1725673249070,0.20355207,53859.0,53858.0,0.42165199]
[1725673249386,0.092858,53859.0,53858.0,0.42165199]
[1725673250077,0.29641007,53859.0,53858.0,0.32879299]
[1725673250281,0.092858,53859.0,53858.0,0.32879299]
[1725673253277,0.12872702,53859.0,53858.0,0.32879299]
[1725673254483,0.18111569,53859.0,53858.0,0.32879299]
[1725673255184,0.14524667,53859.0,53858.0,0.32879299]
[1725673255383,0.14475251,53859.0,53858.0,0.32879299]
[1725673256279,0.18062078,53859.0,53858.0,0.32879299]
[1725673256482,0.18062126,53859.0,53858.0,0.32879299]
[1725673256787,0.14475251,53859.0,53858.0,0.32879299]
[1725673258185,0.18062109,53859.0,53858.0,0.32879299]
[1725673258382,0.092858,53859.0,53858.0,0.32879299]
[1725673259485,0.23119332,53859.0,53858.0,0.2866274]
[1725673261091,0.23119332,53859.0,53851.0,0.19]
[1725673261092,0.73833532,53859.0,53824.0,0.092917]
[1725673261301,0.092877,53848.0,53847.0,0.2866274]
[1725673261602,0.13833532,53848.0,53845.0,0.19]
[1725673261794,0.23121432,53847.0,53845.0,0.19]
[1725673262097,0.13833532,53846.0,53845.0,0.092882]
[1725673262596,0.13833532,53846.0,53845.0,0.3795094]
[1725673262999,0.29781412,53846.0,53845.0,0.3795094]
[1725673263190,0.31252844,53846.0,53845.0,0.3795094]
[1725673264089,0.37912724,53846.0,53845.0,0.3795094]
[1725673264290,0.31252844,53846.0,53845.0,0.3795094]
[1725673264699,0.37559149,53846.0,53845.0,0.27496375]
[1725673264900,0.37559149,53846.0,53845.0,0.36784575]
[1725673267295,0.37559149,53846.0,53845.0,0.27496375]
[1725673267494,0.23725617,53846.0,53845.0,0.21092997]
[1725673267792,0.09288,53846.0,53845.0,0.21092997]
[1725673267993,0.092884,53844.0,53843.0,0.0497]
[1725673268196,0.092884,53844.0,53840.0,0.05573374]
[1725673268399,0.092885,53843.0,53842.0,0.21092997]
[1725673268599,0.33302819,53843.0,53842.0,0.21092997]
[1725673268995,0.37577,53843.0,53842.0,0.21092997]
[1725673269694,0.42599304,53843.0,53842.0,0.21092997]
[1725673269997,0.37577,53843.0,53842.0,0.21092997]
[1725673270403,0.18577,53843.0,53842.0,0.21092997]
[1725673270898,0.092885,53843.0,53842.0,0.30381697]
[1725673272905,0.092885,53843.0,53842.0,0.21092997]
[1725673274197,0.092885,53843.0,53842.0,0.30381697]
[1725673274892,0.14155287,53843.0,53842.0,0.30381697]
[1725673277706,0.04866787,53843.0,53842.0,0.30381697]
[1725673281008,0.04866787,53843.0,53842.0,0.33737487]
[1725673282503,0.08454398,53843.0,53842.0,0.33737487]
[1725673283005,0.03587611,53843.0,53842.0,0.33737487]
[1725673283202,0.13836559,53843.0,53842.0,0.33737487]
[1725673284307,0.20184651,53843.0,53842.0,0.33737487]
[1725673284512,0.30433599,53843.0,53842.0,0.33737487]
[1725673285200,0.13836559,53843.0,53842.0,0.33737487]
[1725673285905,0.13836559,53843.0,53842.0,0.43737487]
[1725673286107,0.20189324,53843.0,53842.0,0.43737487]
[1725673286403,0.16601713,53844.0,53843.0,0.092885]
[1725673286599,0.20188943,53844.0,53843.0,0.192885]
[1725673286808,0.20188943,53844.0,53843.0,0.40381497]
[1725673287312,0.0358723,53844.0,53843.0,0.40381497]
[1725673287611,0.13835091,53844.0,53843.0,0.40381497]
[1725673287807,0.09287423,53844.0,53843.0,0.40381497]
[1725673288109,0.0358723,53844.0,53843.0,0.49381497]
[1725673288307,0.09287423,53844.0,53843.0,0.49381497]
[1725673288513,0.0358723,53844.0,53843.0,0.49381497]
[1725673288701,0.08134898,53844.0,53843.0,0.49381497]
[1725673288906,0.13835091,53844.0,53843.0,0.49381497]
[1725673289499,0.1594856,53848.0,53843.0,0.47523285]
[1725673289500,0.092878,53848.0,53843.0,0.47523285]
[1725673289704,0.092878,53848.0,53847.0,0.30380797]
[1725673289904,0.14127698,53848.0,53847.0,0.30380797]
[1725673290515,0.14127698,53848.0,53847.0,0.35949113]
[1725673292014,0.14127698,53848.0,53847.0,0.54949113]
[1725673292201,0.14127698,53848.0,53847.0,0.49380797]
[1725673294104,0.04839898,53848.0,53847.0,0.49380797]
[1725673294319,0.04839898,53848.0,53847.0,0.56811085]
[1725673294908,0.04839898,53848.0,53847.0,0.49380797]
[1725673295110,0.04839898,53848.0,53847.0,0.56811085]
[1725673295308,0.04839898,53848.0,53847.0,0.49380797]
[1725673295709,0.04839898,53848.0,53847.0,0.56811085]
[1725673296115,0.04839898,53848.0,53847.0,0.49380797]
[1725673296817,0.04839898,53848.0,53847.0,0.54946981]
[1725673297119,0.04839898,53848.0,53847.0,0.49380797]
[1725673297614,0.18675035,53848.0,53847.0,0.49380797]
[1725673298408,0.13835137,53848.0,53847.0,0.49380797]
[1725673298914,0.08134925,53848.0,53847.0,0.49380797]
[1725673301511,0.17422625,53848.0,53847.0,0.21092997]
[1725673301711,0.092878,53847.0,53838.0,0.092893]
[1725673302019,0.16628109,53839.0,53838.0,0.12670053]
[1725673302220,0.13835137,53839.0,53838.0,0.12670053]
[1725673302410,0.03587242,53839.0,53838.0,0.3376305]
[1725673302924,0.12876442,53839.0,53838.0,0.3376305]
[1725673303113,0.23124337,53839.0,53838.0,0.3376305]
[1725673303831,0.41600013,53839.0,53838.0,0.3376305]
[1725673304629,0.41600013,53839.0,53838.0,0.2447375]
[1725673304630,0.29614526,53839.0,53838.0,0.2447375]
[1725673304816,0.092892,53839.0,53838.0,0.2447375]
[1725673306110,0.092892,53839.0,53838.0,0.30040435]
[1725673306320,0.092892,53839.0,53838.0,0.2447375]
[1725673307424,0.092899,53835.0,53834.0,0.05566685]
[1725673307725,0.092899,53835.0,53834.0,0.21092997]
[1725673308023,0.092899,53835.0,53834.0,0.05565662]
[1725673308428,0.092901,53834.0,53833.0,0.05565662]
[1725673308614,0.092901,53834.0,53833.0,0.29961987]
[1725673309115,0.092901,53834.0,53833.0,0.24396325]
[1725673310023,0.092901,53834.0,53833.0,0.29959849]
[1725673311336,0.092901,53834.0,53833.0,0.24396325]
[1725673311915,0.092901,53834.0,53833.0,0.43396325]
[1725673312722,0.12878437,53834.0,53833.0,0.43396325]
[1725673313626,0.092901,53834.0,53833.0,0.43396325]
[1725673313820,0.12878434,53834.0,53833.0,0.43396325]
[1725673314329,0.12878564,53834.0,53833.0,0.43396325]
[1725673316020,0.092901,53834.0,53833.0,0.34396325]
[1725673316915,0.092901,53834.0,53833.0,0.43686625]
[1725673317113,0.20354612,53834.0,53833.0,0.43686625]
[1725673317524,0.092901,53834.0,53833.0,0.43686625]
[1725673320624,0.11064339,53849.0,53833.0,0.43686625]
[1725673320625,0.092897,53837.0,53836.0,0.092897]
[1725673320824,0.092897,53837.0,53836.0,0.40382697]
[1725673323835,0.092891,53840.0,53839.0,0.092892]
[1725673324029,0.092891,53840.0,53839.0,0.192892]
[1725673324235,0.092891,53840.0,53839.0,0.40382197]
[1725673324531,0.092877,53848.0,53839.0,0.98523285]
[1725673324728,0.092877,53848.0,53847.0,0.21092997]
[1725673325839,0.092877,53848.0,53847.0,0.30380797]
[1725673328222,0.092877,53848.0,53847.0,0.33666849]
[1725673334836,0.23123481,53848.0,53847.0,0.30300165]
[1725673335840,0.27774559,53848.0,53847.0,0.19845672]
[1725673337137,0.27774559,53848.0,53847.0,0.12573852]
[1725673337328,0.27774559,53848.0,53847.0,0.19845672]
[1725673337733,0.27773976,53848.0,53847.0,0.19845672]
[1725673342643,0.19639015,53848.0,53847.0,0.19845672]
[1725673342945,0.092877,53848.0,53847.0,0.19845672]
[1725673343133,0.092877,53848.0,53847.0,0.10557872]
[1725673343334,0.092885,53843.0,53838.0,0.05558605]
[1725673343540,0.185774,53842.0,53841.0,0.0727182]
[1725673344332,0.092887,53842.0,53841.0,0.0727182]
[1725673349945,0.1287657,53842.0,53841.0,0.0727182]
[1725673350442,0.092887,53842.0,53841.0,0.0727182]
[1725673350650,0.12876725,53842.0,53841.0,0.0727182]
[1725673351145,0.16208356,53842.0,53841.0,0.0727182]
[1725673352443,0.092889,53841.0,53837.0,0.1]
[1725673352749,0.2035881,53838.0,53837.0,0.1]
[1725673352935,0.2035881,53838.0,53835.0,0.092898]
[1725673352936,0.1,53842.0,53839.0,0.0727182]
[1725673353140,0.18578,53840.0,53839.0,0.0727182]
[1725673353336,0.16223629,53840.0,53839.0,0.0727182]
[1725673354248,0.092901,53834.0,53833.0,0.192902]
[1725673354648,0.092901,53834.0,53833.0,0.2656202]
[1725673355447,0.092901,53834.0,53833.0,0.29966329]
[1725673357243,0.092901,53834.0,53833.0,0.10676129]
[1725673357553,0.12540656,53834.0,53833.0,0.0727182]
[1725673357848,0.092901,53834.0,53833.0,0.1727182]
[1725673365058,0.092901,53834.0,53833.0,0.0727182]
[1725673365253,0.092901,53834.0,53833.0,0.1727182]
[1725673366658,0.092901,53834.0,53833.0,0.2656212]
[1725673370568,0.1,53834.0,53832.0,0.05558605]
[1725673370759,0.092908,53830.0,53829.0,0.1262182]
[1725673373166,0.1742948,53830.0,53829.0,0.1262182]
[1725673373865,0.23132275,53830.0,53829.0,0.1262182]
[1725673374172,0.1742948,53830.0,53829.0,0.1262182]
[1725673376072,0.2313229,53830.0,53829.0,0.1262182]
[1725673378467,0.39728535,53830.0,53829.0,0.1262182]
[1725673379276,0.2313229,53830.0,53829.0,0.1262182]
[1725673379763,0.092908,53830.0,53829.0,0.1262182]
[1725673381676,0.09227965,53836.0,53831.0,0.092905]
[1725673381878,0.092897,53836.0,53835.0,0.1]
[1725673382877,0.092893,53839.0,53837.0,0.092895]
[1725673383171,0.092893,53839.0,53838.0,0.22838573]
[1725673383476,0.092893,53839.0,53838.0,0.1727182]
[1725673383868,0.092893,53839.0,53838.0,0.2656122]
[1725673384382,0.0738614,53841.0,53838.0,0.1727182]
[1725673384674,0.0738614,53842.0,53840.0,0.19289]
[1725673384976,0.1667474,53843.0,53842.0,0.0727182]
[1725673385364,0.1667474,53843.0,53842.0,0.12835892]
[1725673386267,0.092886,53843.0,53842.0,0.12835892]
[1725673386468,0.092886,53843.0,53842.0,0.0727182]
[1725673386469,0.1667474,53843.0,53842.0,0.0727182]
[1725673387267,0.092886,53843.0,53842.0,0.0727182]
[1725673387771,0.12876355,53843.0,53842.0,0.0727182]
[1725673388083,0.092877,53849.0,53842.0,0.0727182]
[1725673388383,0.12875213,53848.0,53846.0,0.09288]
[1725673388573,0.03587513,53847.0,53846.0,0.09288]
[1725673389183,0.03587513,53847.0,53846.0,0.1655982]
[1725673389380,0.092877,53848.0,53846.0,0.1655982]
[1725673389575,0.092877,53848.0,53847.0,0.1727182]
[1725673389773,0.12875131,53848.0,53847.0,0.1727182]
[1725673391075,0.1287513,53848.0,53847.0,0.1727182]
[1725673391271,0.092877,53848.0,53847.0,0.1727182]
[1725673392181,0.12875126,53848.0,53847.0,0.1727182]
[1725673392379,0.092877,53848.0,53847.0,0.1727182]
[1725673392773,0.12875123,53848.0,53847.0,0.1727182]
[1725673392975,0.12919151,53856.0,53847.0,0.1727182]
[1725673393176,0.11059996,53849.0,53848.0,0.092877]
[1725673393384,0.092873,53851.0,53849.0,0.092875]
[1725673393894,0.092873,53851.0,53850.0,0.0727182]
[1725673394183,0.26587072,53858.0,53850.0,0.1727182]
[1725673394184,0.16347072,53858.0,53850.0,0.1727182]
[1725673394394,0.12897459,53858.0,53857.0,0.2655792]
[1725673394582,0.03587057,53858.0,53857.0,0.2655792]
[1725673394889,0.092856,53860.0,53857.0,0.2655792]
[1725673395082,0.092856,53860.0,53859.0,0.0727182]
[1725673398080,0.092856,53860.0,53859.0,0.1655762]
[1725673402896,0.17418972,53860.0,53859.0,0.1655762]
[1725673403479,0.24050344,53860.0,53859.0,0.1655762]
[1725673403685,0.32183716,53860.0,53859.0,0.1655762]
[1725673403891,0.17418972,53860.0,53859.0,0.1655762]
[1725673405987,0.17418972,53860.0,53859.0,0.0727182]
[1725673406192,0.27636901,53860.0,53859.0,0.0727182]
[1725673406389,0.32183716,53860.0,53859.0,0.0727182]
[1725673407292,0.23118366,53860.0,53859.0,0.0727182]
[1725673408090,0.17418972,53860.0,53859.0,0.0727182]
[1725673409395,0.23118702,53860.0,53859.0,0.0727182]
[1725673409596,0.17418972,53860.0,53859.0,0.0727182]
[1725673410000,0.092856,53860.0,53859.0,0.0727182]
[1725673410691,0.16654266,53860.0,53859.0,0.0727182]
[1725673410891,0.092856,53860.0,53859.0,0.0727182]
[1725673411198,0.16654266,53860.0,53859.0,0.0727182]
[1725673411389,0.092856,53860.0,53859.0,0.0727182]
[1725673411793,0.16658989,53860.0,53859.0,0.0727182]
[1725673412399,0.092856,53860.0,53859.0,0.0727182]
[1725673412798,0.092856,53860.0,53859.0,0.1655762]
[1725673417321,0.1666297,53860.0,53859.0,0.1655762]
[1725673417509,0.092856,53860.0,53859.0,0.1655762]
[1725673417913,0.09234728,53860.0,53859.0,0.0727182]
[1725673418111,0.09234728,53860.0,53859.0,0.1655762]
[1725673418307,0.092855,53861.0,53860.0,0.092856]
[1725673418518,0.092855,53861.0,53860.0,0.4055742]
[1725673420021,0.092855,53861.0,53860.0,0.3155742]
[1725673422910,0.11052999,53863.0,53862.0,0.092853]
[1725673423118,0.11052999,53863.0,53862.0,0.1655712]
[1725673423317,0.11099681,53863.0,53862.0,0.1655712]
[1725673423721,0.12553212,53867.0,53862.0,0.1655712]
[1725673423915,0.12553212,53867.0,53864.0,0.1727182]
[1725673424112,0.12895165,53869.0,53867.0,0.092844]
[1725673424316,0.092839,53870.0,53868.0,0.1]
[1725673424523,0.03586252,53869.0,53862.0,0.0516]
[1725673424828,0.1076,53878.0,53865.0,0.092847]
[1725673424829,0.11102316,53866.0,53865.0,0.092847]
[1725673425019,0.17552694,53866.0,53865.0,0.092847]
[1725673425214,0.17552694,53866.0,53865.0,0.1655652]
[1725673425617,0.1755266,53866.0,53865.0,0.1655652]
[1725673425819,0.2683726,53866.0,53865.0,0.0727182]
[1725673426114,0.2683726,53866.0,53860.0,0.08356568]
[1725673426115,0.092854,53861.0,53860.0,0.08356568]
[1725673426314,0.2683806,53861.0,53860.0,0.18356568]
[1725673426511,0.2683806,53861.0,53860.0,0.15616169]
[1725673427916,0.23116236,53861.0,53860.0,0.24901769]
[1725673431425,0.27144537,53861.0,53860.0,0.24901769]
[1725673432921,0.12871527,53861.0,53860.0,0.24901769]
[1725673433128,0.092854,53861.0,53860.0,0.24901769]
[1725673435026,0.092854,53861.0,53860.0,0.30468346]
[1725673436731,0.092854,53861.0,53860.0,0.21182746]
[1725673437831,0.092854,53861.0,53860.0,0.30468346]
[1725673438134,0.092854,53861.0,53860.0,0.24901769]
[1725673440134,0.23118309,53861.0,53860.0,0.24901769]
[1725673440335,0.27397547,53861.0,53860.0,0.24901769]
[1725673440632,0.27397558,53861.0,53860.0,0.24901769]
[1725673442031,0.27397558,53861.0,53860.0,0.15616169]
[1725673444127,0.21698407,53861.0,53860.0,0.15616169]
[1725673444324,0.27397809,53861.0,53860.0,0.15616169]
[1725673444525,0.27397809,53861.0,53860.0,0.20856169]
[1725673446726,0.27397809,53861.0,53836.0,0.092897]
[1725673446727,0.092875,53849.0,53836.0,0.092897]
[1725673447027,0.27399909,53849.0,53847.0,0.04249612]
[1725673447231,0.26243019,53848.0,53847.0,0.092877]
[1725673447426,0.26243019,53848.0,53847.0,0.192877]
[1725673447641,0.26243019,53848.0,53847.0,0.24903869]
[1725673447935,0.12409848,53848.0,53847.0,0.24903869]
[1725673448136,0.0739587,53852.0,53850.0,0.092872]
[1725673448439,0.1668267,53853.0,53851.0,0.28269402]
[1725673448738,0.1668143,53852.0,53851.0,0.1523]
[1725673448944,0.09287,53852.0,53851.0,0.0523]
[1725673449127,0.09287,53852.0,53851.0,0.20846169]
[1725673451733,0.09287,53852.0,53851.0,0.26408385]
[1725673451931,0.09287,53852.0,53851.0,0.11178385]
[1725673452133,0.09287,53852.0,53851.0,0.21178385]
[1725673452845,0.16673534,53852.0,53851.0,0.15616169]
[1725673453538,0.09287,53852.0,53851.0,0.15616169]
[1725673455741,0.16672252,53852.0,53851.0,0.15616169]
[1725673456252,0.09287,53852.0,53851.0,0.15616169]
[1725673456938,0.09287,53852.0,53851.0,0.05616169]
[1725673457136,0.09287,53852.0,53840.0,0.05562216]
[1725673457137,0.092877,53848.0,53840.0,0.05562216]
[1725673457339,0.092894,53838.0,53837.0,0.1]
[1725673460645,0.12713887,53843.0,53835.0,0.0523]
[1725673460646,0.092897,53836.0,53835.0,0.0523]
[1725673460840,0.092897,53836.0,53835.0,0.1523]
[1725673466449,0.14558,53847.0,53835.0,0.1523]
[1725673466749,0.14558,53847.0,53844.0,0.1]
[1725673466750,0.09288,53847.0,53844.0,0.1]
[1725673467645,0.09288,53847.0,53842.0,0.1]
[1725673467848,0.12692027,53847.0,53842.0,0.1]
[1725673468936,0.092885,53843.0,53842.0,0.1]
[1725673470050,0.09289,53840.0,53839.0,0.092892]
[1725673470354,0.09289,53840.0,53839.0,0.192892]
[1725673471043,0.09289,53840.0,53839.0,0.2256057]
[1725673479351,0.18578,53840.0,53839.0,0.0327137]
[1725673479552,0.092897,53836.0,53831.0,0.05562216]
[1725673479752,0.092906,53831.0,53830.0,0.05562216]
[1725673479960,0.092906,53831.0,53828.0,0.092909]
[1725673479961,0.092906,53831.0,53829.0,0.05562216]
[1725673480166,0.092906,53831.0,53829.0,0.15562216]
[1725673480957,0.092906,53831.0,53829.0,0.24853116]
[1725673481860,0.092908,53830.0,53829.0,0.24853116]
[1725673483948,0.092898,53836.0,53829.0,0.1]
[1725673484153,0.092898,53836.0,53835.0,0.1]
[1725673485458,0.092898,53836.0,53835.0,0.1556296]
[1725673485665,0.092898,53836.0,53835.0,0.1]
[1725673485960,0.092898,53836.0,53835.0,0.1556296]
[1725673486164,0.092898,53836.0,53835.0,0.1]
[1725673486359,0.092898,53836.0,53835.0,0.1556296]
[1725673486656,0.092898,53836.0,53835.0,0.15568145]
[1725673486857,0.092898,53836.0,53835.0,0.1]
[1725673487457,0.092898,53836.0,53835.0,0.15568059]
[1725673487649,0.092898,53836.0,53835.0,0.15567917]
[1725673487854,0.092898,53836.0,53835.0,0.1]
[1725673488864,0.092898,53836.0,53835.0,0.15567993]
[1725673489750,0.092898,53836.0,53835.0,0.15567918]
[1725673491155,0.185796,53836.0,53835.0,0.05567918]
[1725673491356,0.092899,53835.0,53834.0,0.05567918]
[1725673492961,0.092903,53833.0,53832.0,0.05567918]
[1725673493259,0.092898,53836.0,53830.0,0.1]
[1725673493260,0.092906,53831.0,53830.0,0.1]
[1725673493464,0.20380311,53831.0,53830.0,0.1]
[1725673493660,0.20380033,53831.0,53830.0,0.1]
[1725673493963,0.092906,53831.0,53830.0,0.1]
[1725673494656,0.2037918,53831.0,53830.0,0.1]
[1725673494855,0.092906,53831.0,53830.0,0.1]
[1725673496463,0.20378305,53831.0,53830.0,0.1]
[1725673499864,0.20378305,53831.0,53827.0,0.08342979]
[1725673500064,0.092906,53831.0,53830.0,0.1]
[1725673500559,0.092906,53831.0,53830.0,0.17423233]
[1725673501068,0.092906,53831.0,53830.0,0.26714033]
[1725673502260,0.09241347,53838.0,53837.0,0.092896]
[1725673502461,0.22229072,53857.0,53827.0,0.08342979]
[1725673502462,0.11087705,53845.0,53836.0,0.16687645]
[1725673502659,0.32894001,53849.0,53844.0,0.1]
[1725673502868,0.092875,53849.0,53848.0,0.1]